Cogmind - Beta 13 @@@ ROGUE MODE // 2024.04.01 @ 21:40:44 Player: zsh Result: Destroyed by C-17 Slicer with Blade Saw Performance ------------- Evolutions (2) 1000 Regions Visited (4) 800 Robots Destroyed (43) 215 Value Destroyed (1531) 1531 Prototype IDs (1) 20 Alien Tech Used (0) 0 Bonus (200) 200 TOTAL SCORE: 3766 Bonus ------- Entered Garrisons 200 Cogmind --------- Core Integrity 0/550 Matter 300/300 Energy 264/265 System Corruption 0% Temperature Cool (0) Movement Core (200) Ox3 Location -8/Garrison Parts ------- > --- POWER (2) -------- Improved Ion Engine > --- PROPULSION (3) --- Aluminum Leg > --- UTILITY (3) ------ Heat Sink > --- WEAPON (3) ------- Katana > --- INVENTORY (5) ---- Light Ion Engine Light Ion Engine Improved Ion Engine Peak State ------------ > --- POWER ------------ Light Nuclear Core Light Nuclear Core > --- PROPULSION ------- Light Treads Light Treads Aerolev Unit > --- UTILITY ---------- Seismic Detector ECM Suite Hacking Suite > --- WEAPON ----------- Spread Laser Heavy Assault Cannon > --- INVENTORY -------- Light Ion Engine EM Pulse Cannon Assault Rifle Mini Grenade Launcher Katana [Rating: 26] Favorites ----------- Power Ion Engine Engine Ion Engine Power Core Light Nuclear Core Propulsion Light Treads Treads Light Treads Leg Aluminum Leg Wheel Wheel Hover Unit Aerolev Unit Utility ECM Suite Device ECM Suite Storage Small Storage Unit Hackware Hacking Suite Weapon Light Cannon Energy Gun Spread Laser Energy Cannon EM Pulse Cannon Ballistic Gun Light Assault Rifle Ballistic Cannon Light Cannon Launcher Mini Grenade Launcher Impact Weapon Flail Slashing Weapon Katana Build | -11 -10 -9 -8 -8 ------- Run | Yrd Mat Mat Mat Gar Slots Evolved 4 | . . 2 2 . Power 1 | . . 1 . . Propulsion 1 | . . . 1 . Utility 1 | . . . 1 . Weapon 1 | . . 1 . . Parts Attached 54 | 6 5 14 14 15 Power 14 | 1 2 2 3 6 Engine 8 | 1 2 2 1 2 Core 6 | . . . 2 4 Reactor . | . . . . . Propulsion 14 | 2 . 5 3 4 Treads 7 | 2 . 3 1 1 Leg 5 | . . 2 . 3 Wheel 1 | . . . 1 . Hover 1 | . . . 1 . Flight . | . . . . . Utility 9 | 1 1 2 1 4 Device 7 | . 1 2 . 4 Storage 1 | 1 . . . . Processor . | . . . . . Hackware 1 | . . . 1 . Protection . | . . . . . Artifact . | . . . . . Weapon 17 | 2 2 5 7 1 Energy Gun 2 | . . 1 . 1 Energy Cannon 2 | . . . 2 . Ballistic Gun 5 | 2 . 2 1 . Ballistic Cannon 3 | . 2 1 . . Launcher 2 | . . . 2 . Special Weapon . | . . . . . Impact Weapon 1 | . . 1 . . Slashing Weapon 2 | . . . 2 . Piercing Weapon . | . . . . . Special Melee Weapon . | . . . . . Unidentified Prototypes 1 | . . . 1 . Parts Lost 26 | . 1 2 13 10 Power 8 | . 1 . 4 3 Propulsion 6 | . . 1 3 2 Utility 5 | . . . 2 3 Weapon 7 | . . 1 4 2 Highest Loss Streak 8 | . 1 1 8 6 To Critical Strikes . | . . . . . Average Slot Usage (%) 76 | . 81 82 66 58 Engine 14 | . 11 19 12 4 Core 1 | . . . 1 8 Treads 11 | . 14 11 11 1 Leg 2 | . . 3 . 10 Device 13 | . 13 13 14 9 Storage 7 | . 14 8 . . Hackware 1 | . . . 5 6 Energy Gun 2 | . . 2 7 2 Ballistic Gun 4 | . 14 1 . . Ballistic Cannon 12 | . 12 18 7 . Impact Weapon 1 | . . 3 . . Slashing Weapon 1 | . . . . 9 Naked Turns . | . . . . . Heaviest Build 30 | 12 18 30 30 21 Greatest Support 40 | 40 40 40 40 20 Greatest Overweight (x) 7 | . 5 7 3 3 Average Overweight (x) 1 | . 1 1 . . Largest Inventory Capacity 8 | 8 8 8 5 5 Average Capacity 6 | 6 8 7 5 5 Most Carried 6 | 1 3 6 5 3 Average Carried 3 | . 1 4 4 1 Final Capacity 8 | 8 8 5 5 5 Final Carried 5 | 1 3 5 1 3 Class Distribution -------------------- 67% | Mutant 21% | Gunner 7% | Tank 3% | Scavenger-Mutant Dominant Class ---------------- Mutant | -10/Materials Mutant | -9/Materials Gunner | -8/Materials Mutant | -8/Garrison Resources | -11 -10 -9 -8 -8 ----------- Run | Yrd Mat Mat Mat Gar Matter Collected 1409 | 115 163 529 261 341 Remotely . | . . . . . Salvage Created 1082 | . 150 313 252 367 Parts 71 | . 12 18 22 19 Haulers Intercepted . | . . . . . Recyclers Shooed 1 | . . . 1 . Parts Field Recycled . | . . . . . Retrieved Matter . | . . . . . Parts Self-Destructed . | . . . . . Prevented . | . . . . . Kills | -11 -10 -9 -8 -8 ------- Run | Yrd Mat Mat Mat Gar Combat Hostiles Destroyed 34 | . 4 12 10 8 Melee 5 | . . . 1 4 Guns 9 | . 2 2 2 3 Cannons 18 | . 2 10 6 . AOE 2 | . . . 1 1 Classes Destroyed 7 | . 4 1 1 1 Worker 5 | . 2 2 1 . Builder 1 | . . . 1 . Watcher 3 | . 1 1 1 . Swarmer 8 | . 2 3 3 . Cutter 1 | . . . . 1 Grunt 17 | . 2 5 5 5 Sentry 8 | . . 4 2 2 Best Kill Streak 5 | . 4 5 4 4 Combat Bots Only 4 | . 2 3 3 4 Max Kills in Single Turn 2 | . 2 1 1 1 Gunslinging . | . . . . . Exploded 1 | . . . 1 1 Melee 1 | . . . 1 1 Uniques/NPCs Destroyed . | . . . . . Combat | -11 -10 -9 -8 -8 -------- Run | Yrd Mat Mat Mat Gar Hostile Shots Fired 340 | . 65 88 115 72 Missed 116 | . 24 36 35 21 Damage Taken 3200 | . 403 662 1269 866 Core 804 | . 174 78 330 222 Absorbed by Shields . | . . . . . Core Remaining (%) 70 | 100 30 80 . . Volleys Fired 131 | . 27 44 40 20 Largest 3 | . 2 3 3 1 Hottest 125 | . 70 125 125 56 Shots Fired 217 | . 54 87 56 20 Gun 83 | . 34 15 15 19 Cannon 128 | . 20 72 36 . Launcher 6 | . . . 5 1 Special . | . . . . . Kinetic 169 | . 54 80 35 . Thermal 40 | . . 7 14 19 Explosive 6 | . . . 5 1 Electromagnetic 2 | . . . 2 . Robot Hit Streak 10 | . 5 10 4 6 Robot Miss Streak 6 | . 6 5 6 3 Penetration Max . | . . . . . Secondary Targets 1 | . 1 . . . Max Gunslinging Chain 1 | . 1 . . . Shots Hit Robots 126 | . 22 53 29 22 Core Hits 71 | . 11 21 27 12 Critical Kills 1 | . 1 . . . Critical Parts Destroyed . | . . . . . Critical Strikes 9 | . 1 5 2 1 Burn 1 | . . . . 1 Destroy 1 | . 1 . . . Blast 7 | . . 5 2 . Melee Attacks 11 | . . . 1 10 Impact . | . . . . . Slashing 11 | . . . 1 10 Piercing . | . . . . . Sneak Attacks . | . . . . . Combat Hostiles . | . . . . . Follow-up Attacks . | . . . . . Damage Inflicted 3402 | . 320 1186 1344 552 Guns 613 | . 145 159 102 207 Cannons 2062 | . 175 957 930 . Explosions 397 | . . 70 255 72 Melee 309 | . . . 36 273 Ramming 21 | . . . 21 . Kinetic 2264 | . 320 1023 921 . Thermal 460 | . . 163 90 207 Explosive 327 | . . . 255 72 Electromagnetic 21 | . . . 21 . Impact . | . . . . . Slashing 309 | . . . 36 273 Piercing . | . . . . . Highest Corruption . | . . . . . Average Corruption . | . . . . . Corruption Purged . | . . . . . Corruption Blocked . | . . . . . Overload Shots . | . . . . . Overflow Damage 121 | . 9 10 102 . Projectiles 121 | . 9 10 102 . Explosions . | . . . . . Melee . | . . . . . Knockbacks 8 | . 1 4 3 . Impact . | . . . . . Kinetic 8 | . 1 4 3 . Secondary . | . . . . . Self-Inflicted Damage 70 | . . . 22 48 Shots 2 | . . . 1 1 Rammed 5 | . . . 5 . Targets Rammed 5 | . . . 5 . Kicked . | . . . . . Crushed . | . . . . . Highest Temperature 344 | . 25 344 304 17 Average Temperature 64 | . 10 67 86 9 Received Heat Transfer 1086 | . 135 240 432 279 Effects 2 | . . 1 1 . Shutdowns 1 | . . 1 . . Damage (minor) 1 | . . . 1 . Siege Activations . | . . . . . Robots Corrupted . | . . . . . Combat Hostiles . | . . . . . Parts Fried . | . . . . . Impact Corruptions . | . . . . . Robots Melted . | . . . . . Combat Hostiles . | . . . . . Parts Melted 4 | . . . . 4 Heat Transferred 857 | . . 155 110 592 Parts Sabotaged . | . . . . . Parts Stolen . | . . . . . Parts Stripped . | . . . . . Power Chain Reactions . | . . . . . Alert | -11 -10 -9 -8 -8 ------- Run | Yrd Mat Mat Mat Gar Peak Influence 287 | . 85 188 287 207 Initial 63 | . . 24 63 58 Average 92 | . 32 110 120 157 Maximum Alert Level 1 | . . . 1 1 Low Security (%) 97 | 100 100 100 84 98 Level 1 2 | . . . 15 1 Level 2 . | . . . . . Level 3 . | . . . . . Level 4 . | . . . . . Level 5 . | . . . . . High Security . | . . . . . Max Security . | . . . . . Squads Dispatched 2 | . 1 . 1 . Investigation . | . . . . . Extermination . | . . . . . Reinforcement 2 | . 1 . 1 . Assault . | . . . . . Garrison . | . . . . . Intercept . | . . . . . Searches Triggered . | . . . . . Construction Impeded . | . . . . . Haulers Reinforced . | . . . . . Active Scanning Responses . | . . . . . Cargo Convoy Interrupts . | . . . . . Stealth | -11 -10 -9 -8 -8 --------- Run | Yrd Mat Mat Mat Gar Distress Signals 3 | . 3 . . . Communications Jammed . | . . . . . Distress Signals . | . . . . . Times Spotted 57 | . 17 16 14 10 Peak Tracking Total 6 | . 6 3 4 4 Tactical Retreats 3 | . 1 1 1 . Traps | -11 -10 -9 -8 -8 ------- Run | Yrd Mat Mat Mat Gar Traps Triggered 3 | . 2 . . 1 Indirectly . | . . . . . Trap Hack Attempts . | . . . . . Triggered . | . . . . . Disarmed . | . . . . . Reprogrammed 4 | . . 4 . . Reused . | . . . . . Traps Extracted . | . . . . . Installed . | . . . . . Triggered . | . . . . . Machines | -11 -10 -9 -8 -8 ---------- Run | Yrd Mat Mat Mat Gar Machines Disabled 7 | . . 4 2 1 Max in Single Turn 3 | . . 3 1 1 Garrison Relay 1 | . . . . 1 Machines Repaired . | . . . . . Machines Dismantled . | . . . . . Machines Sabotaged . | . . . . . Overloaded Fab Kills . | . . . . . Hacking | -11 -10 -9 -8 -8 --------- Run | Yrd Mat Mat Mat Gar Machines Accessed 9 | . 4 4 1 . Terminals 6 | . 3 3 . . Fabricators . | . . . . . Repair Stations 1 | . . 1 . . Recycling Units 1 | . 1 . . . Scanalyzers . | . . . . . Garrison Access 1 | . . . 1 . Total Hacks 18 | . 6 9 3 . Successful 10 | . 1 7 2 . Failed 8 | . 5 2 1 . Catastrophic . | . . . . . Database Lockouts . | . . . . . Manual . | . . . . . Terminals 12 | . 4 8 . . Fabricators . | . . . . . Repair Stations 1 | . . 1 . . Recycling Units 2 | . 2 . . . Scanalyzers . | . . . . . Garrison Access 3 | . . . 3 . Terminal Hacks 7 | . 1 6 . . Record 4 | . . 4 . . Reprogram Traps 1 | . . 1 . . Transport Status 1 | . 1 . . . Assault Status 1 | . . 1 . . Fabricator Hacks . | . . . . . Repair Station Hacks 1 | . . 1 . . Scan Component 1 | . . 1 . . Recycling Unit Hacks . | . . . . . Scanalyzer . | . . . . . Garrison Access Hacks 2 | . . . 2 . Unlock Access 1 | . . . 1 . Coupler Status 1 | . . . 1 . Unauthorized Hacks . | . . . . . Terminals . | . . . . . Fabricators . | . . . . . Repair Stations . | . . . . . Recycling Units . | . . . . . Scanalyzers . | . . . . . Garrison Access . | . . . . . Data Cores Recovered . | . . . . . Used . | . . . . . Hacking Detections 5 | . 3 1 1 . Full Trace Events . | . . . . . Feedback Events . | . . . . . Feedback Blocked . | . . . . . Robot Schematics Acquired . | . . . . . Robots Built . | . . . . . Authchips . | . . . . . Time . | . . . . . Total Robot Build Rating . | . . . . . Part Schematics Acquired . | . . . . . Parts Built . | . . . . . Authchips . | . . . . . Time . | . . . . . Total Part Build Rating . | . . . . . Parts Repaired . | . . . . . Time . | . . . . . Parts Recycled . | . . . . . Recycled Matter . | . . . . . Retrieved Matter . | . . . . . Retrieved Components . | . . . . . Parts Scanalyzed . | . . . . . Part Schematics Acquired . | . . . . . Parts Damaged . | . . . . . Bothacking | -11 -10 -9 -8 -8 ------------ Run | Yrd Mat Mat Mat Gar Used RIF Installer . | . . . . . Robots Hacked . | . . . . . Non-combat . | . . . . . Combat . | . . . . . Robot Hacks Applied . | . . . . . Relay Couplers Released 3 | . . . . 3 Machine Destruction 3 | . . . . 3 Fabnet Peak Effective % . | . . . . . Robots Rewired . | . . . . . Allies Hacked . | . . . . . Hacks Repelled . | . . . . . Allies | -11 -10 -9 -8 -8 -------- Run | Yrd Mat Mat Mat Gar Total Allies . | . . . . . Largest Group . | . . . . . Highest-Rated Group . | . . . . . Highest-Rated Ally . | . . . . . Total Orders . | . . . . . Ally Attacks . | . . . . . Total Damage . | . . . . . Kills . | . . . . . Allies Corrupted . | . . . . . Allies Melted . | . . . . . Intel | -11 -10 -9 -8 -8 ------- Run | Yrd Mat Mat Mat Gar Robot Analysis Total . | . . . . . Derelict Logs Recovered . | . . . . . Drone Launches . | . . . . . Drone Recoveries . | . . . . . Exploration | -11 -10 -9 -8 -8 ------------- Run | Yrd Mat Mat Mat Gar Turns Passed 2633 | 84 700 1117 479 253 Spaces Moved 1084 | 49 306 415 184 130 Core 220 | 3 117 74 25 1 Treads 607 | 46 189 232 129 11 Legs 184 | . . 109 . 75 Wheels 60 | . . . 17 43 Hover 13 | . . . 13 . Flight . | . . . . . Fastest Speed 50 | 50 150 160 50 80 Average Speed 195 | 153 200 228 180 118 Slowest Speed 400 | 160 300 400 270 240 Overloaded Moves . | . . . . . Propulsion Burnouts . | . . . . . Robots Hopped . | . . . . . Cave-ins Triggered . | . . . . . Exploration Rate (%) 24 | 4 44 40 16 16 Regions Visited 4 Branch Regions . Pre-discovered Areas . | . . . . . Known Exits Taken 1 | . . . 1 . Unknown Exits Taken 3 | 1 1 1 . . Scrap Searched . | . . . . . Spaces Dug . | . . . . . Terrain Destroyed 58 | . . 10 41 7 Melee . | . . . . . Projectile 20 | . . 2 18 . AOE 38 | . . 8 23 7 Terrain Rammed . | . . . . . Walls Destroyed . | . . . . . Machines Disabled . | . . . . . Actions | -11 -10 -9 -8 -8 --------- Run | Yrd Mat Mat Mat Gar Total 1330 | 55 344 494 250 187 Wait 15 | . 5 6 4 . Move 1080 | 48 305 414 183 130 Hop . | . . . . . Pick Up 13 | 1 2 7 2 1 Fast Attach 39 | 6 5 5 9 14 Attach 8 | . . 3 5 . Detach . | . . . . . Swap 9 | . . 6 . 3 Drop 11 | . . 9 1 1 Fire 131 | . 27 44 40 20 Melee 11 | . . . 1 10 Ram 4 | . . . 4 . Kick . | . . . . . Crush 1 | . . . 1 . Escape Stasis 8 | . . . . 8 Rewire . | . . . . . Trap . | . . . . . Miscellaneous . | . . . . . Route ------- -11/Scrapyard -10/Materials -9/Materials (discovered 2 exits: *Mat / [*Min]) -8/Materials -8/Garrison History --------- Turn | Location | Event 22 | -11/Scrapyard | Discovered new exit (range 14) 85 | -11/Scrapyard | Entered Materials 306 | -10/Materials | Build established: Mutant 479 | -10/Materials | Core integrity fell below 50% 575 | -10/Materials | Discovered new exit (range 15) 785 | -10/Materials | Entered another Materials area 785 | -9/Materials | Evolved 2 slots: Power x1, Weapon x1 956 | -9/Materials | Discovered new exit (range 16) 1648 | -9/Materials | Discovered new exit (range 16) 1902 | -9/Materials | Entered another Materials area 1902 | -8/Materials | Evolved 2 slots: Propulsion x1, Utility x1 2081 | -8/Materials | Build established: Gunner 2296 | -8/Materials | Lost 3 parts (1p1n1u) 2334 | -8/Materials | Core integrity fell below 50% 2376 | -8/Materials | Lost 8 parts (1p2n1u4w) 2380 | -8/Materials | Identified exit to Garrison 2381 | -8/Materials | Entered Garrison 2416 | -8/Garrison | Triggered checkpoint 2418 | -8/Garrison | Garrison Relay disabled 2522 | -8/Garrison | Triggered checkpoint 2523 | -8/Garrison | Triggered checkpoint 2546 | -8/Garrison | Core integrity fell below 20% 2595 | -8/Garrison | Lost 6 parts (2p2n2u) 2634 | -8/Garrison | Destroyed by C-17 Slicer with Blade Saw Last Messages --------------- G-47 Trooper suffers critical hit (Burn). Lgt. Nuclear Core melted. Particle Gun melted. Imp. Heat Sink melted. G-47 Trooper destroyed. Acquired Imp. Ion Engine. Acquired 54 matter. Acquired Heat Sink. Acquired Lgt. Treads. Acquired Imp. Ion Engine. Acquired Lgt. Nuclear Core. Acquired 54 matter. Acquired 46 matter. Acquired Aluminum Leg. Aluminum Leg severed. Beam Rifle destroyed. Lgt. Treads severed. Lgt. Nuclear Core destroyed. C-17 Slicer destroyed. Heat Sink destroyed. Map ----- +----------------------------------------------------+ | ?????????????????????# ! #??????????? | | ?????????????????????## ########### #??????????? | | ?????????????????????#"" !"#????????# #??????????? | | ?????????????????????#######????????# #??????????? | | ????????????????????????????????????# #??????????? | | ????????????????????????????????????# #??????????? | | ????????????????????????????????????# #??????????? | | ????????????????????????????????????# #??????????? | | ????????????????????????????????????# #??????????? | | ????????????????????????????????????# #??????????? | | ????????????????????????????????????# #??????????? | | ????????????????????????????????????# #??????????? | | ????????????????????????????????????# #???#####??? | | ????????????????????????????????????# #???# #??? | | ??????????????????????????????????### ##### #??? | | ??????????????????????????????????# #??? | | ??????????????????????????????????# #??? | | ??????????????????????????????????# ##########??? | | ?????????????????####?????????????# #???????????? | | ????????????# ???# ????????????# #???????????? | | ????????????# ## ######??????# #???????????? | | ????????????# ######## #???????????? | | ????????????# #???????????? | | ????????????# #???????????? | | ????????????# ## ## ==###########???????????? | | ????????????# ## ##c@c###???????????????????? | | ????????????" / #???????????????????? | | ????????????" #???????????????????? | | ????????????" #???????????????????? | | ????????????" ! #???????????????????? | | ????????????# ## ## ###???????????????????? | | ????????????# ???# ?# #?????????????????????? | | ???????????????? ? ?????????????????????? | | ?????????????? ?????????????????????? | | ????????????? ????????????????????? | | ?????????????# ##""""###+###????????????????????? | | ?????????????? ?????????? ???????????????????????? | | ?????????????????????????#???????????????????????? | | ?????????????????????????????????????????????????? | | ?????????????????????????????????????????????????? | | ?????????????????????????????????????????????????? | | ?????????????????????????????????????????????????? | | ?????????????????????????????????????????????????? | | ?????????????????????????????????????????????????? | | ?????????????????????????????????????????????????? | | ?????????????????????????????????????????????????? | | ?????????????????????????????????????????????????? | | ?????????????????????????????????????????????????? | | ?????????????????????????????????????????????????? | | ?????????????????????????????????????????????????? | +----------------------------------------------------+ Best States ------------- Heat Dissipation 59 Energy Generation 23 Energy Capacity 430 Matter Stores 300 Matter Capacity 300 Sight Range 16 Terrain Scan Density 10 ECM Strength 1 Evasion (%) 55 Recoil Reduction 2 Offensive Hacking 10 Item Schematics ----------------- None Robot Schematics ------------------ None Fabricated ------------ Nothing Alien Tech Used ----------------- None Achievements -------------- None Challenges ------------ None Game ------ Seed LauncherStealthSuite Manual? 0 Play Time 00:21:44 Cumulative 2.2 hours Start 2024.04.01 @ 19:32:48 End 2024.04.01 @ 21:40:44 Sessions 2 Manual Loads 0 Difficulty Rogue Special Mode None Game No. 6 Rogue 6 Adventurer 0 Explorer 0 Win Type - Total 0 Types 0/0/0/0/0/0/0/0/0 Lore% 0 Gallery% 8 Achievement% 7 Wizard Run 0 Options --------- Layout 1 ASCII 0 Keyboard 0 Movement Arrows Keybinds 0 Fullscreen 1 Font 20/SmallcapsGlow Map View 28x22 Zoom Use 93% Tactical HUD 0 Map Filters NONE Filters NONE Steam 1 RUN: bdc25bc6-d5fe-402e-aa65-dc002f13a763